bitfinex/quotes_SOLUSD_20260105
["timestamp","ask_amount","ask_price","bid_price","bid_amount"]
[1767572674554,13.6,134.0,133.95,8.86445851]
[1767572674741,26.11569911,134.02,133.96,0.68911932]
[1767572675063,13.6,134.01,133.97,0.68911932]
[1767572675263,8.17533919,134.0,133.95,8.17036179]
[1767572675562,8.17533919,134.06,134.0,0.70506039]
[1767572675862,8.17533919,134.06,134.0,8.88039958]
[1767572676065,26.10576564,134.07,134.0,8.88039958]
[1767572676066,8.17533919,134.05,134.0,0.70506039]
[1767572676258,8.89258581,134.05,134.0,0.70506039]
[1767572676459,0.58322793,134.02,133.99,8.17533919]
[1767572676958,0.58322793,134.02,134.0,8.17533919]
[1767572677551,0.58322793,134.02,133.99,8.17533919]
[1767572678041,0.58322793,134.02,134.0,8.17533919]
[1767572679170,8.04493826,134.02,133.99,8.17533919]
[1767572680141,0.58322793,134.02,133.99,8.17533919]
[1767572680341,0.58322793,134.02,134.0,8.17533919]
[1767572682586,0.58322793,134.02,134.0,5.03767137]
[1767572683449,0.099,134.0,133.94,0.70506039]
[1767572683672,5.51705702,133.99,133.94,5.74273176]
[1767572684260,0.47938565,133.99,133.95,5.03767137]
[1767572684459,5.5208993,134.01,133.96,5.74273176]
[1767572684772,5.03767137,134.0,133.96,0.70506039]
[1767572684950,0.48322793,134.01,133.96,0.70506039]
[1767572684951,0.48322793,134.01,133.96,5.74273176]
[1767572685153,5.5208993,134.01,133.97,0.70506039]
[1767572685485,14.08322793,134.03,133.97,5.74273176]
[1767572685645,21.06123705,134.03,133.99,5.74273176]
[1767572685847,21.06123705,134.03,133.99,0.70506039]
[1767572686879,21.06123705,134.03,133.99,5.74273176]
[1767572687094,13.6,134.03,134.01,0.70506039]
[1767572687254,7.46066534,134.04,134.0,5.03767137]
[1767572687255,7.46066534,134.04,134.0,5.74273176]
[1767572687952,7.46066534,134.04,134.01,0.70506039]
[1767572688159,7.46066534,134.04,134.0,5.74273176]
[1767572688560,7.46066534,134.04,134.0,2.75649868]
[1767572688882,7.46012643,134.05,134.02,0.70506039]
[1767572689183,21.05952733,134.06,134.03,0.70506039]
[1767572689387,7.45902036,134.07,134.03,0.70506039]
[1767572689782,8.04331156,134.08,134.03,2.75649868]
[1767572689968,8.04331156,134.08,134.03,0.70506039]
[1767572690480,8.04331156,134.08,134.03,2.75649868]
[1767572691088,10.09474985,134.08,134.03,0.70506039]
[1767572691981,0.71592487,134.07,134.03,0.70506039]
[1767572692185,7.45990302,134.05,134.01,2.75649868]
[1767572692383,8.04589623,134.06,134.02,2.05143829]
[1767572693092,8.04589623,134.06,134.01,8.1671789]
[1767572693278,8.04589623,134.06,134.02,2.05143829]
[1767572693868,0.58638002,134.06,134.02,10.21806985]
[1767572694089,7.45896642,134.07,134.03,2.05143829]
[1767572694291,8.04403791,134.07,134.03,2.05143829]
[1767572694772,0.58507149,134.07,134.03,2.75649868]
[1767572694974,8.04352286,134.08,134.04,2.05143829]
[1767572697794,8.04352286,134.08,134.03,10.21729159]
[1767572698290,8.04352286,134.08,134.04,0.70506039]
[1767572699509,10.09496115,134.08,134.04,0.70506039]
[1767572699798,0.71592487,134.07,134.03,0.70506039]
[1767572700380,13.6,134.09,134.05,0.67254515]
[1767572700700,7.45489786,134.14,134.09,0.67254515]
[1767572700877,7.45489786,134.14,134.11,5.032548]
[1767572701396,0.7054221,134.13,134.08,0.67254515]
[1767572701610,0.7054221,134.13,134.09,5.032548]
[1767572702686,8.16131068,134.13,134.09,5.032548]
[1767572703584,0.59677777,134.12,134.08,5.70509315]
[1767572705002,0.70433565,134.11,134.04,0.67254515]
[1767572705300,0.70433565,134.11,134.06,5.70509315]
[1767572705680,0.59785335,134.1,134.06,5.70509315]
[1767572707080,0.59785335,134.1,134.06,0.67254515]
[1767572707883,0.59785335,134.1,134.07,5.032548]
[1767572708100,0.59785335,134.1,134.06,13.16434876]
[1767572709105,8.05506365,134.1,134.06,5.70509315]
[1767572710315,0.59785335,134.1,134.07,5.032548]
[1767572710479,8.16273807,134.12,134.08,5.70509315]
[1767572710690,0.7065306,134.14,134.1,5.70509315]
[1767572711211,8.05024789,134.15,134.11,5.70509315]
[1767572711506,8.04966701,134.16,134.11,0.67254515]
[1767572711684,8.04966701,134.16,134.12,5.70509315]
[1767572712006,8.04966701,134.16,134.12,5.67702958]
[1767572712317,0.7065306,134.2,134.15,0.67254515]
[1767572712485,3.88227966,134.23,134.14,5.032548]
[1767572712486,0.7065306,134.18,134.14,5.032548]
[1767572713185,0.62359578,134.17,134.12,5.032548]
[1767572714113,0.70570125,134.16,134.09,7.45751765]
[1767572714281,8.08067521,134.13,134.06,18.64768581]
[1767572714600,8.35013837,134.21,134.13,0.67254515]
[1767572714601,8.07627129,134.18,134.13,0.67254515]
[1767572714799,5.73824925,134.17,134.13,0.67254515]
[1767572715001,5.65696483,134.16,134.11,0.67254515]
[1767572715198,0.70488841,134.15,134.11,5.70509315]
[1767572715398,0.70488841,134.15,134.09,13.58]
[1767572715399,0.62522155,134.14,134.09,14.25254515]
[1767572715595,0.62522155,134.14,134.09,0.67254515]
[1767572715791,0.70409174,134.13,134.09,5.70509315]
[1767572716300,8.08239623,134.12,134.07,5.70509315]
[1767572716502,8.08239623,134.12,134.08,0.67254515]
[1767572716886,7.45638598,134.12,134.09,5.70509315]
[1767572717203,24.37706205,134.14,134.09,5.70509315]
[1767572717204,7.45564423,134.13,134.09,5.70509315]
[1767572717401,7.45564423,134.13,134.1,5.032548]
[1767572717597,7.45564423,134.13,134.1,5.70509315]
[1767572718909,7.45564423,134.13,134.09,5.032548]
[1767572719111,7.45564423,134.13,134.09,5.70509315]
[1767572720011,13.11178801,134.13,134.09,0.67254515]
[1767572720618,8.07924001,134.13,134.09,0.67254515]
[1767572720910,8.07924001,134.13,134.09,2.72163789]
[1767572721205,8.07924001,134.13,134.09,0.67254515]
[1767572721406,8.07924001,134.13,134.09,2.72163789]
[1767572724197,8.07924001,134.13,134.09,0.67254515]
[1767572724406,0.70570125,134.12,134.08,0.67254515]
[1767572724611,0.70570125,134.12,134.08,2.72163789]
[1767572724783,10.21126757,134.13,134.09,0.67254515]
[1767572725103,8.16217483,134.13,134.09,0.67254515]
[1767572725311,2.67268852,134.12,134.06,0.67254515]
[1767572725518,0.70570125,134.11,134.07,0.67254515]
[1767572726018,8.08153838,134.1,134.06,16.30163789]
[1767572726603,7.45712155,134.1,134.07,2.72163789]
[1767572726811,19.34833938,134.11,134.08,2.72163789]
[1767572726812,7.45677247,134.11,134.08,2.72163789]
[1767572727004,7.45621046,134.12,134.09,0.67254515]
[1767572727207,8.07980624,134.12,134.09,0.67254515]
[1767572727412,8.07980624,134.12,134.08,2.72163789]
[1767572728316,8.07980624,134.12,134.08,0.67254515]
[1767572729010,14.2865306,134.14,134.09,2.72163789]
[1767572729228,7.45561618,134.13,134.1,2.72163789]
[1767572729901,7.45561618,134.13,134.1,0.67254515]
[1767572730103,7.45561618,134.13,134.1,2.72163789]
[1767572730405,7.45561618,134.13,134.1,0.67254515]
[1767572731819,7.45561618,134.13,134.09,2.04909274]
[1767572731820,8.07921196,134.13,134.09,0.70162203]
[1767572732525,8.11506793,134.14,134.1,0.70162203]
[1767572734322,0.65970155,134.12,134.07,7.45857134]
[1767572734529,0.65970155,134.12,134.08,0.70162203]
[1767572737026,0.6598041,134.1,134.06,2.77361353]
[1767572737206,0.6598041,134.1,134.06,0.72452079]
[1767572738523,8.1171267,134.1,134.06,0.72452079]
[1767572738910,5.70253861,134.09,134.05,0.72452079]
[1767572739220,8.09597941,134.1,134.05,0.72452079]
[1767572739527,31.77146688,134.1,134.05,0.72452079]
[1767572739726,13.12866301,134.1,134.06,0.72452079]
[1767572741220,5.0326836,134.09,134.06,0.72452079]
[1767572741536,5.72347443,134.09,134.05,0.72452079]
[1767572742528,8.87099523,134.09,134.05,0.72452079]
[1767572742929,16.32882064,134.09,134.05,0.72452079]
[1767572744238,8.8704791,134.07,134.04,0.72452079]
[1767572744532,0.63865681,134.08,134.03,0.72452079]
[1767572744711,8.1802044,134.07,134.03,0.72452079]
[1767572745635,15.63956347,134.06,134.03,0.72452079]
[1767572746730,7.45896089,134.07,134.04,0.72452079]
[1767572747313,8.35013837,134.12,134.03,7.46090579]
[1767572747314,7.45675938,134.11,134.06,0.72452079]
[1767572747511,0.69131744,134.16,134.09,0.72452079]
[1767572747713,0.63865681,134.15,134.11,0.72452079]
[1767572749016,0.63917815,134.13,134.09,13.58]
[1767572749221,0.63917815,134.13,134.09,0.72452079]
[1767572749834,15.63510226,134.14,134.1,0.72452079]
[1767572750034,16.3264197,134.14,134.1,0.72452079]
[1767572750738,7.45456084,134.15,134.11,0.72452079]
[1767572751444,16.27342205,134.15,134.11,0.72452079]
[1767572755849,0.6902747,134.12,134.08,0.72452079]
[1767572756047,0.6902747,134.12,134.08,14.30452079]
[1767572756546,8.87152184,134.13,134.09,0.72452079]
[1767572757048,8.81886121,134.12,134.08,13.58]
[1767572757245,0.69079083,134.11,134.08,13.58]
[1767572757543,8.87099523,134.11,134.07,63.12452079]
[1767572757746,16.27654782,134.1,134.06,0.72452079]
[1767572758646,0.63968912,134.08,134.04,0.72452079]
[1767572758847,0.63968912,134.08,134.04,14.30452079]
[1767572760048,8.09813424,134.08,134.04,14.30452079]
[1767572760244,8.1802044,134.07,134.04,0.72452079]
[1767572760746,3.87211908,134.07,134.02,21.75196237]
[1767572760947,3.87211908,134.07,133.99,18.65730396]
[1767572760948,3.20442026,134.03,133.99,0.71057648]
[1767572761323,3.20442026,134.01,133.97,0.71057648]
[1767572762251,3.20442026,134.01,133.97,8.17489976]
[1767572762550,3.86657045,134.02,133.98,0.71057648]
[1767572763350,0.66215019,134.02,133.98,0.71057648]
[1767572764556,0.66215019,134.02,133.98,8.17424253]
[1767572765030,8.12820237,134.04,134.0,0.71057648]
[1767572765644,11.33262263,134.04,134.0,0.71057648]
[1767572766853,8.12820237,134.04,134.0,0.71057648]
[1767572767165,7.45823389,134.08,134.04,0.71057648]
[1767572767352,7.45823389,134.08,134.04,3.91499674]
[1767572767859,0.66769882,134.11,134.06,0.71057648]
[1767572768068,3.87211908,134.11,134.06,0.71057648]
[1767572768556,16.30207923,134.11,134.06,0.71057648]
[1767572768762,8.83985415,134.1,134.05,0.71057648]
[1767572770260,0.66203924,134.1,134.06,0.71057648]
[1767572770557,7.4565655,134.11,134.08,0.71057648]
[1767572770854,0.66764222,134.1,134.06,0.71057648]
[1767572771064,16.30202263,134.11,134.06,8.88839139]
[1767572771233,7.4565655,134.11,134.07,8.88839139]
[1767572771658,8.11860474,134.11,134.07,8.88839139]
[1767572772359,0.66769882,134.13,134.09,8.88839139]
[1767572772769,0.66769882,134.13,134.09,0.71057648]
[1767572773436,16.30114952,134.13,134.09,0.71057648]
[1767572773638,0.66203924,134.12,134.07,0.71057648]
[1767572773836,0.66203924,134.12,134.07,16.3470177]
[1767572774137,0.66203924,134.12,134.07,8.88839139]
[1767572774537,0.66764222,134.11,134.07,0.71057648]
[1767572774752,26.09426995,134.13,134.1,0.71057648]
[1767572774958,7.45563579,134.13,134.1,0.71057648]
[1767572775254,15.6334507,134.13,134.1,0.71057648]
[1767572775555,0.66758675,134.12,134.08,0.71057648]
[1767572775948,0.66769882,134.16,134.11,8.88839139]
[1767572776149,0.66203924,134.15,134.11,0.71057648]
[1767572777256,26.75029206,134.16,134.12,0.71057648]
[1767572777958,0.66209527,134.14,134.1,8.88839139]
[1767572778270,0.66215019,134.12,134.08,0.71057648]
[1767572779679,8.8399651,134.12,134.08,0.71057648]
[1767572780379,16.29613827,134.12,134.08,0.71057648]
[1767572780970,0.66753238,134.11,134.07,21.03844547]
[1767572781177,0.66753238,134.11,134.07,13.58]
[1767572782013,0.66753238,134.11,134.07,14.29057648]
[1767572783675,37.26944388,134.16,134.07,14.29057648]
[1767572783676,18.63522137,134.16,134.11,0.71057648]
[1767572783983,8.12162268,134.16,134.12,8.17781491]
[1767572784466,8.12162268,134.16,134.11,8.88839139]
[1767572785198,0.66209527,134.15,134.09,0.71057648]
[1767572785387,8.17781491,134.14,134.1,0.71057648]
[1767572785687,8.84551373,134.15,134.1,8.88839139]
[1767572786483,0.66769882,134.15,134.11,8.88839139]
[1767572786978,0.66769882,134.15,134.11,0.71057648]
[1767572787281,7.45489786,134.14,134.11,0.71057648]
[1767572790789,8.1169371,134.14,134.1,0.710881]
[1767572793909,0.66764222,134.13,134.09,13.58]
[1767572794087,0.66764222,134.13,134.09,14.290881]
[1767572794405,7.45489786,134.14,134.11,0.710881]
[1767572794605,0.71135494,134.17,134.13,8.17781491]
[1767572794784,0.71135494,134.17,134.13,8.15002131]
[1767572795679,8.16458591,134.17,134.13,8.15002131]
[1767572797024,0.67821461,134.16,134.12,8.87375897]
[1767572797306,0.67821461,134.16,134.13,8.17781491]
[1767572798789,8.13206888,134.16,134.12,0.69594406]
[1767572799097,8.16436558,134.18,134.14,0.69594406]
[1767572799596,7.45378652,134.16,134.11,8.15231864]
[1767572799799,7.45378652,134.16,134.13,0.69594406]
[1767572800602,0.67821752,134.15,134.11,0.69594406]
[1767572800810,0.67821752,134.15,134.11,8.87375897]
[1767572801791,0.67821752,134.15,134.12,8.17781491]
[1767572803099,8.16591852,134.14,134.1,13.58]
[1767572803299,0.71169007,134.14,134.1,29.91077311]
[1767572803499,8.16624111,134.15,134.11,8.87375897]
[1767572804521,0.67788283,134.14,134.1,5.02902577]
[1767572804809,0.67788283,134.14,134.1,5.72496983]
[1767572805483,0.67788283,134.14,134.1,0.69594406]
[1767572805689,0.711352,134.13,134.09,0.69594406]
[1767572807026,8.16718086,134.13,134.09,0.69594406]
[1767572808434,7.45510054,134.14,134.11,0.69594406]
[1767572808643,7.45510054,134.14,134.11,5.72496983]
[1767572809137,8.13298337,134.14,134.09,13.18263984]
[1767572809338,8.13298337,134.14,134.1,0.69594406]
[1767572810336,13.1641263,134.11,134.06,0.69594406]
[1767572810638,7.45688301,134.11,134.07,0.69594406]
[1767572811035,8.13476584,134.11,134.07,2.7457467]
[1767572812068,8.13476584,134.11,134.07,0.69594406]
[1767572813820,10.18456848,134.11,134.07,0.69594406]
[1767572814927,10.15456849,134.11,134.07,0.69594406]
[1767572817866,8.10476585,134.11,134.07,0.69594406]
[1767572820499,8.07476586,134.11,134.07,0.69594406]
[1767572820802,8.14596813,134.13,134.1,0.67649441]
[1767572821102,8.14596813,134.13,134.08,2.72629705]
[1767572821285,0.69036357,134.16,134.12,0.67649441]
[1767572821488,0.69036357,134.16,134.13,2.04980264]
[1767572821898,8.14317625,134.18,134.14,2.72629705]
[1767572822094,0.69036357,134.18,134.15,2.04980264]
[1767572822909,7.45216867,134.19,134.16,2.04980264]
[1767572823213,8.14253224,134.19,134.16,2.72629705]
[1767572823528,8.14253224,134.19,134.16,2.04980264]
[1767572823690,0.69036357,134.18,134.15,0.67649441]
[1767572823882,0.66036358,134.18,134.15,0.67649441]
[1767572825722,8.11309732,134.18,134.14,0.67649441]
[1767572825883,2.74016621,134.17,134.12,2.72629705]
[1767572826086,0.66929608,134.16,134.11,15.62980264]
[1767572826285,0.66929608,134.16,134.11,16.30629705]
[1767572826710,0.66929608,134.16,134.12,0.67649441]
[1767572826885,0.69015289,134.15,134.1,2.72629705]
[1767572827210,10.19467826,134.15,134.1,8.1335839]
[1767572828008,8.14487562,134.15,134.1,10.18338654]
[1767572828508,10.19467826,134.15,134.1,10.18338654]
[1767572828886,8.14487562,134.15,134.1,10.18338654]
[1767572829087,8.14487562,134.15,134.1,8.1335839]
[1767572829316,8.12443212,134.14,134.1,10.18338654]
[1767572829915,8.14488825,134.15,134.11,0.67649441]
[1767572830209,8.14488825,134.15,134.11,2.72629705]
[1767572830414,8.12322401,134.16,134.12,2.72629705]
[1767572830591,8.12322401,134.16,134.12,0.67649441]
[1767572831503,10.17302665,134.16,134.12,0.67649441]
[1767572831700,0.69036357,134.17,134.12,0.67649441]
[1767572831906,0.69036357,134.18,134.14,0.67649441]
[1767572832106,8.14336207,134.18,134.14,2.72629705]
[1767572832317,8.14336207,134.18,134.14,0.67649441]
[1767572833032,0.69036357,134.18,134.14,2.72629705]
[1767572833908,0.69036357,134.18,134.14,10.1811853]
[1767572834407,8.12154717,134.19,134.15,2.72629705]
[1767572834811,0.69036357,134.21,134.17,2.72629705]
[1767572835500,0.69036357,134.21,134.17,0.67649441]
[1767572835709,0.69036357,134.21,134.17,2.72629705]
[1767572835926,0.69036357,134.21,134.17,10.17949751]
[1767572836127,8.14146746,134.21,134.17,2.72629705]
[1767572836923,0.2,134.22,134.19,0.67649441]
[1767572837130,0.2,134.22,134.19,2.72629705]
[1767572837622,0.2,134.22,134.19,0.67649441]
[1767572838027,0.2,134.22,134.19,2.72629705]
[1767572838230,0.2,134.22,134.2,0.67649441]
[1767572839223,0.86929608,134.22,134.18,0.67649441]
[1767572839544,0.86929608,134.22,134.18,2.72629705]
[1767572840125,0.2,134.22,134.2,0.67649441]
[1767572841112,0.2,134.22,134.19,0.67649441]
[1767572842654,35.14140043,134.26,134.22,0.67649441]
[1767572842830,35.14140043,134.26,134.22,0.58906252]
[1767572843338,34.45103686,134.26,134.22,0.58906252]
[1767572843534,7.44729006,134.28,134.23,2.04980264]
[1767572844237,7.64771619,134.27,134.22,15.62980264]
[1767572844427,9.69751883,134.27,134.22,13.58]
[1767572844825,7.64771619,134.27,134.23,0.67649441]
[1767572845434,7.44724821,134.28,134.22,21.03037427]
[1767572845635,7.6467896,134.29,134.24,2.04980264]
[1767572846924,0.69036357,134.27,134.22,7.45036619]
[1767572847122,2.04980264,134.28,134.22,23.08016883]
[1767572847320,26.9535803,134.29,134.24,2.04980264]
[1767572847525,8.33715317,134.29,134.25,0.26965348]
[1767572847724,8.33715317,134.29,134.25,0.20965348]
[1767572848738,7.6467896,134.29,134.25,0.20965348]
[1767572848941,9.69659224,134.29,134.25,0.20965348]
[1767572850542,10.3595668,134.29,134.24,0.20965348]
[1767572850836,0.66297456,134.28,134.24,0.20965348]
[1767572851224,0.66297456,134.28,134.23,9.70917107]
[1767572851744,0.66297456,134.25,134.2,7.66104624]
[1767572851933,2.7127772,134.25,134.2,7.66104624]
[1767572852243,2.7127772,134.25,134.2,23.29084888]
[1767572852445,0.66297456,134.25,134.2,23.29084888]
[1767572852744,8.11205579,134.25,134.2,23.29084888]
[1767572852946,10.16185843,134.25,134.2,21.24104624]
[1767572854634,0.66297456,134.24,134.2,21.03139276]
[1767572854829,0.66297456,134.23,134.18,0.20965348]
[1767572855137,0.66297456,134.22,134.18,2.25945612]
[1767572855723,0.66297456,134.22,134.18,0.20965348]
[1767572856036,0.6814511,134.21,134.17,23.29262541]
[1767572856340,0.6814511,134.21,134.17,21.24282277]
[1767572856643,0.6814511,134.21,134.17,23.29262541]
[1767572856845,10.18139732,134.23,134.18,7.66231197]
[1767572857032,0.6814511,134.22,134.18,7.66231197]
[1767572857648,0.6814511,134.22,134.17,23.08292286]
[1767572857843,0.6814511,134.21,134.17,13.58]
[1767572858226,0.6814511,134.22,134.18,0.20965348]
[1767572858951,9.49994622,134.23,134.18,7.66226351]
[1767572859248,9.49994622,134.23,134.19,0.20965348]
[1767572860455,2.04980264,134.21,134.19,0.20965348]
[1767572863052,2.04980264,134.21,134.18,0.20965348]
[1767572864842,2.04980264,134.19,134.17,13.78965348]
[1767572865042,2.04980264,134.2,134.17,13.78965348]
[1767572865753,2.04980264,134.25,134.2,0.20965348]
[1767572866145,2.04980264,134.25,134.21,0.20965348]
[1767572866448,2.73125374,134.26,134.21,0.20965348]
[1767572866653,3.87683304,134.26,134.21,0.20965348]
[1767572866858,11.32529281,134.26,134.22,0.20965348]
[1767572867047,11.32529281,134.26,134.21,7.66053741]
[1767572868242,11.32529281,134.26,134.22,0.20965348]
[1767572868443,11.32418425,134.28,134.22,0.20965348]
[1767572868958,11.32418425,134.28,134.23,0.20965348]
[1767572869155,0.6814511,134.28,134.24,0.20965348]
[1767572869463,3.87683304,134.28,134.24,0.20965348]
[1767572872257,0.6814511,134.28,134.24,7.65881787]
[1767572875168,3.87683304,134.28,134.24,7.65881787]
[1767572875966,0.6814511,134.28,134.24,7.65881787]
[1767572876163,10.84217032,134.29,134.25,0.20965348]
[1767572876468,0.2,134.29,134.27,0.20965348]
[1767572877140,0.2,134.29,134.28,0.20965348]
[1767572877356,0.2,134.3,134.28,0.20965348]
[1767572877862,1e-08,134.3,134.27,16.77538194]
[1767572878369,0.68145111,134.3,134.27,13.58]
[1767572879055,1e-08,134.3,134.27,13.58]
[1767572879364,1e-08,134.3,134.27,21.02749901]
[1767572879765,1e-08,134.3,134.25,21.81735586]
[1767572879766,1e-08,134.3,134.26,7.44821436]
[1767572879942,0.68145111,134.3,134.26,24.2235963]
[1767572880871,0.662919,134.28,134.24,13.58]
[1767572881057,3.85830094,134.28,134.24,13.58]
[1767572881360,0.662919,134.28,134.24,21.02932435]
[1767572881566,0.66291901,134.3,134.25,3.19538194]
[1767572881943,0.662919,134.29,134.24,21.02932435]
[1767572882142,0.662919,134.29,134.25,3.19538194]
[1767572882339,0.662919,134.29,134.24,21.02932435]
[1767572882545,3.85830094,134.29,134.24,21.02932435]
[1767572883268,11.30448092,134.3,134.25,3.19538194]
[1767572883773,11.30492136,134.29,134.24,24.22470629]
[1767572883966,0.662919,134.26,134.22,7.45003644]
[1767572884164,8.10953942,134.29,134.24,7.44927294]
[1767572884368,11.30492136,134.29,134.24,7.44927294]
[1767572884562,3.85830094,134.28,134.24,7.44927294]
[1767572884766,3.85830094,134.27,134.23,7.4497838]
[1767572885066,3.85830094,134.26,134.22,21.03033035]
[1767572885746,3.19538194,134.23,134.2,7.45156179]
[1767572886065,3.85830094,134.24,134.2,7.45156179]
[1767572887064,11.30772249,134.24,134.19,13.56]
[1767572887253,0.662919,134.22,134.19,13.56]
[1767572887452,3.19538194,134.21,134.19,13.56]
[1767572888052,3.19538194,134.21,134.17,7.45320726]
[1767572888053,3.85830094,134.21,134.17,7.45320726]
[1767572889162,3.19538194,134.22,134.17,10.6485892]
[1767572890472,11.30859929,134.23,134.17,10.6485892]
[1767572891171,3.85830094,134.23,134.17,10.6485892]
[1767572891963,0.662919,134.23,134.18,3.19538194]
[1767572892265,37.23574983,134.28,134.19,16.77538194]
[1767572892266,11.30729011,134.25,134.19,16.77538194]
[1767572892464,3.85830094,134.25,134.19,16.77538194]
[1767572893372,3.85830094,134.24,134.2,7.45156482]
[1767572895978,3.85830094,134.24,134.19,7.45212012]
[1767572895979,0.662919,134.23,134.19,7.45212012]
[1767572896178,3.85830094,134.22,134.19,21.03212012]
[1767572896773,3.19538194,134.23,134.19,21.03212012]
[1767572897279,3.85830094,134.23,134.19,21.03212012]
[1767572898585,0.662919,134.23,134.19,21.03212012]
[1767572898881,3.85830094,134.23,134.19,21.03212012]
[1767572901379,0.662919,134.23,134.19,21.03212012]
[1767572901680,3.85830094,134.23,134.19,21.03212012]
[1767572902484,0.662919,134.23,134.19,21.03212012]
[1767572903558,3.85830094,134.22,134.17,65.59538194]
[1767572903765,0.662919,134.21,134.18,13.58]
[1767572904883,0.662919,134.21,134.18,21.03266072]
[1767572905274,0.662919,134.21,134.18,13.58]
[1767572906466,0.662919,134.23,134.19,3.19538194]
[1767572907086,0.662919,134.23,134.18,24.22804326]
[1767572907787,11.30820076,134.23,134.18,24.22804326]
[1767572909188,0.662919,134.21,134.18,13.58]
[1767572909700,0.662919,134.21,134.18,21.03256336]
[1767572910691,0.68802079,134.23,134.18,24.2279453]
[1767572910903,122.41857154,134.28,134.2,3.19538194]
[1767572911098,0.68802079,134.26,134.22,3.19538194]
[1767572911272,0.68802079,134.26,134.22,10.6455943]
[1767572912472,0.68802079,134.24,134.21,13.58]
[1767572914087,0.68802079,134.24,134.21,21.03090973]
[1767572914290,3.19538194,134.26,134.21,21.03090973]
[1767572914495,0.68802079,134.26,134.22,3.19538194]
[1767572915078,0.68802079,134.28,134.24,3.19538194]
[1767572915376,0.68802079,134.28,134.24,16.77538194]
[1767572915789,7.4461665,134.3,134.25,10.64400137]
[1767572915993,0.71527399,134.3,134.26,3.19538194]
[1767572916191,1e-08,134.3,134.28,3.19538194]
[1767572916380,1e-08,134.3,134.29,16.77538194]
[1767572916693,1e-08,134.3,134.29,16.74338472]
[1767572916997,1e-08,134.3,134.29,13.58]
[1767572920792,1e-08,134.3,134.28,3.19538194]
[1767572921088,1e-08,134.3,134.28,16.77538194]
[1767572921489,1e-08,134.3,134.28,13.58]
[1767572922999,0.71527399,134.3,134.24,7.44934445]
[1767572923196,0.71527399,134.3,134.25,3.19538194]
[1767572923498,0.71527398,134.29,134.26,3.19538194]
[1767572924197,0.71527398,134.28,134.24,16.77538194]
[1767572924500,0.71527398,134.28,134.24,24.22446195]
[1767572925292,0.71527398,134.28,134.25,3.19538194]
[1767572925498,0.71527398,134.29,134.26,3.19538194]
[1767572926697,0.71527398,134.29,134.26,2.04353374]
[1767572929402,0.71527398,134.29,134.26,9.49174144]
[1767572929707,0.71527398,134.29,134.26,2.04353374]
[1767572931102,0.71527398,134.28,134.25,15.60353374]
[1767572932311,0.71527398,134.28,134.25,13.56]
[1767572932602,0.71527398,134.28,134.25,15.60353374]
[1767572933515,0.71527398,134.29,134.26,2.04353374]
[1767572933686,0.71527399,134.3,134.27,2.04353374]
[1767572933880,0.71527399,134.3,134.26,2.04353374]
[1767572934995,0.71527399,134.3,134.26,9.49157097]
[1767572936505,0.71527399,134.3,134.26,7.44803723]
[1767572937907,0.71527398,134.28,134.25,13.56]
[1767572938399,0.71527398,134.27,134.24,69.84923228]
[1767572938599,0.71527398,134.27,134.24,7.44923228]
[1767572939016,0.71527398,134.27,134.23,21.00970511]
[1767572939415,0.71527398,134.27,134.23,23.05323885]
[1767572939802,0.71527398,134.28,134.23,23.05323885]
[1767572941291,0.6585467,134.29,134.25,2.04353374]
[1767572942512,0.65854671,134.3,134.27,2.04353374]
[1767572943207,1e-08,134.3,134.26,13.56]
[1767572943510,1e-08,134.3,134.27,2.04353374]
[1767572944496,1e-08,134.3,134.26,23.05137006]
[1767572946823,0.65854671,134.3,134.26,23.05137006]
[1767572947601,1e-08,134.3,134.27,2.04353374]
[1767572947801,0.65854671,134.3,134.26,21.00783632]
[1767572947993,0.65854671,134.3,134.27,2.04353374]
[1767572948205,1e-08,134.3,134.27,2.04353374]
[1767572948908,1e-08,134.3,134.28,2.04353374]
[1767572950110,1e-08,134.3,134.29,2.04353374]
[1767572950631,0.2,134.32,134.29,15.60353374]
[1767572950958,1e-08,134.32,134.31,2.04353374]
[1767572952420,1e-08,134.32,134.31,9.48899573]
[1767572955619,0.65854671,134.32,134.27,19.36363594]
[1767572955819,0.65854671,134.32,134.28,15.60353374]
[1767572956024,0.65854671,134.32,134.29,2.04353374]
[1767572956205,0.65854671,134.32,134.29,9.48975315]
[1767572956531,0.65854671,134.32,134.3,2.04353374]
[1767572957518,0.65854671,134.32,134.29,9.48975315]
[1767572960310,1e-08,134.32,134.31,2.04353374]
[1767572961126,166.9,134.39,134.35,2.04353374]
[1767572961127,0.6585467,134.38,134.35,2.04353374]
[1767572961333,0.6585467,134.37,134.34,2.04353374]
[1767572961530,0.6585467,134.37,134.33,2.04353374]
[1767572962120,0.6585467,134.37,134.33,9.48765699]
[1767572962327,0.6585467,134.36,134.33,7.44412325]
[1767572965737,0.6585467,134.36,134.33,2.04353374]
[1767572966939,0.6585467,134.35,134.32,2.04353374]
[1767572967124,0.6585467,134.35,134.31,23.04877557]
[1767572970624,0.6585467,134.35,134.32,2.04353374]